[Event "WYCC 2018 G18"]
[Site "Halkidiki"]
[Date "2018.10.20"]
[Round "1"]
[White "Zairbek kyzy, Begimay"]
[Black "Avramidou, Anastasia"]
[Result "0-1"]
[ECO "B06"]
[WhiteElo "1919"]
[BlackElo "2285"]
[Annotator "NA"]
[PlyCount "86"]
[EventDate "2018.10.20"]
[EventType "swiss"]
[EventCountry "GRE"]
[SourceTitle "playchess.com"]
[Source "ChessBase"]
[SourceQuality "1"]
[TimeControl "40/5400+30:1800+30"]

1. e4 {[%emt 0:00:00]} g6 {[%emt 0:00:00]} 2. d4 {[%emt 0:00:33]} Bg7 {[%emt 0:00:00]} 3. Nc3 {[%emt 0:00:10]} c6 {[%emt 0:00:00]} 4. f4 {[%emt 0:00:24]} d5 {[%emt 0:00:00]} 5. e5 {[%emt 0:00:45]} Nh6 {[%emt 0:00:04]} 6. Nf3 {[%emt 0:00:38]} f6 {[%emt 0:00:06]} 7. Be3 {[%emt 0:01:06] B15: Caro-Kann: 3 Nc3: 3...g6 and 3...dxe4 4 Nxe4 Nf6 5 Nxf6+ exf6} Qb6 {[%emt 0:01:30]} (7... O-O 8. h3 Qb6 9. Qd2 Qxb2 10. Rb1 Qa3 11. g4 Nf7 12. Bd3 fxe5 13. dxe5 Na6 14. Rb3 Qa5 {1-0 (31) Robson,R (2668)-Shabalov,A (2556) Saint Louis 2017 CBM 178 [Yermolinsky,A]}) 8. Na4 {[%emt 0:05:07]} Qa5+ {[%emt 0:06:04]} 9. c3 {[%emt 0:00:47]} O-O {[%emt 0:13:55]} 10. Nc5 $146 {[%emt 0:01:16]} ({Predecessor:} 10. Bd3 Qc7 11. O-O Be6 12. Nc5 Bc8 13. h3 b6 14. Nb3 fxe5 15. fxe5 {1-0 (34) Bjerre,J (2423)-Pleasants,A (2090) Batumi 2018}) 10... Qc7 {[%emt 0:05:05]} 11. h3 {[%emt 0:04:39]} b6 {[%emt 0:00:13]} 12. Nd3 {[%emt 0:00:22]} Bf5 {[%emt 0:13:02]} 13. Qd2 {[%emt 0:05:24]} Be4 {[%emt 0:10:23]} 14. Be2 {[%emt 0:02:03]} a5 {[%emt 0:07:58]} 15. O-O {[%emt 0:10:26]} Na6 {[%emt 0:01:12]} 16. g4 {[%emt 0:07:49]} Nf7 {[%emt 0:06:15]} 17. Nf2 {[%emt 0:03:41]} Bxf3 {[%emt 0:00:44]} 18. Bxf3 {[%emt 0:00:37]} fxe5 {[%emt 0:00:05]} 19. dxe5 $17 {[%emt 0:01:27]} Nxe5 {[%emt 0:00:17]} 20. Bxd5+ {[%emt 0:01:44]} cxd5 {[%emt 0:00:08]} 21. fxe5 {[%emt 0:00:36]} e6 {[%emt 0:05:28]} 22. Rae1 {[%emt 0:08:40]} Qxe5 {[%emt 0:08:11]} 23. Nd3 {[%emt 0:10:20]} Qg3+ {[%emt 0:00:06]} 24. Qg2 {[%emt 0:00:09]} Rxf1+ {[%emt 0:01:09]} 25. Kxf1 {[%emt 0:00:07]} Qd6 {[%emt 0:04:06]} 26. Kg1 {[%emt 0:01:58]} Nc5 {[%emt 0:02:09]} 27. Nf4 {[%emt 0:03:31]} Rf8 {[%emt 0:01:53]} 28. Rf1 {[%emt 0:06:05]} d4 {[%emt 0:05:59]} 29. Qd2 {[%emt 0:10:23]} Ne4 {[%emt 0:01:58]} 30. Qd3 {[%emt 0:00:09]} Ng3 {[%emt 0:02:36]} 31. Re1 {[%emt 0:03:09]} Be5 {[%emt 0:02:57]} 32. Nxg6 {[%emt 0:02:16]} dxe3 {[%emt 0:00:15]} 33. Qxd6 {[%emt 0:03:34]} Bxd6 {[%emt 0:00:05]} 34. Nxf8 {[%emt 0:00:03]} Kxf8 {[%emt 0:00:22]} 35. Kg2 {[%emt 0:00:25]} Bf4 {[%emt 0:01:21]} 36. Kf3 {[%emt 0:06:40]} e5 {[%emt 0:00:04]} 37. Rxe3 {[%emt 0:00:56]} Bxe3 {[%emt 0:00:05]} 38. Kxe3 {[%emt 0:00:05]} Ke7 {[%emt 0:01:25]} 39. a4 {[%emt 0:00:09]} Ke6 {[%emt 0:00:25]} 40. b4 {[%emt 0:00:00]} Kd5 {[%emt 0:00:00]} 41. h4 {[%emt 0:00:59]} Kc4 {[%emt 0:14:46]} 42. bxa5 {[%emt 0:00:28]} bxa5 {[%emt 0:00:04]} 43. Kf3 {[%emt 0:00:06]} Kd3 {[%emt 0:01:17]} 0-1

[Event "WYCC 2018 G18"]
[Site "Halkidiki"]
[Date "2018.10.20"]
[Round "1"]
[White "Gillis Onieva, Celia"]
[Black "Injac, Teodora"]
[Result "0-1"]
[ECO "E91"]
[WhiteElo "1892"]
[BlackElo "2258"]
[Annotator "NA"]
[PlyCount "66"]
[EventDate "2018.10.20"]
[EventType "swiss"]
[EventCountry "GRE"]
[SourceTitle "playchess.com"]
[Source "ChessBase"]
[SourceQuality "1"]
[TimeControl "40/5400+30:1800+30"]

1. d4 {[%emt 0:00:00]} Nf6 {[%emt 0:00:00]} 2. Nf3 {[%emt 0:00:00]} g6 {[%emt 0:00:00]} 3. c4 {[%emt 0:00:00]} Bg7 {[%emt 0:00:00]} 4. Nc3 {[%emt 0:00:08]} O-O {[%emt 0:00:00]} 5. e4 {[%emt 0:00:09]} d6 {[%emt 0:00:03]} 6. Be2 {[%emt 0:00:14]} Na6 {[%emt 0:01:01]} 7. O-O {[%emt 0:01:10]} e5 {[%emt 0:00:07]} 8. dxe5 {[%emt 0:02:07]} dxe5 {[%emt 0:00:12]} 9. Be3 {[%emt 0:02:23]} Ng4 {[%emt 0:30:27]} 10. Bg5 $14 {[%emt 0:09:42] LiveBook: 16 Games} f6 {[%emt 0:01:05]} 11. Bd2 {[%emt 0:05:28]} Nh6 {[%emt 0:04:52]} 12. Qc1 {[%emt 0:08:33]} Nf7 {[%emt 0:00:05]} 13. Rd1 {[%emt 0:00:43]} c6 {[%emt 0:00:40]} 14. Be3 {[%emt 0:05:39]} Qe7 {[%emt 0:00:09]} 15. c5 {[%emt 0:12:05]} f5 {[%emt 0:06:56]} 16. exf5 {[%emt 0:09:24]} gxf5 {[%emt 0:00:31]} 17. Bxa6 {[%emt 0:14:01]} bxa6 {[%emt 0:00:07]} 18. Qc2 {[%emt 0:02:10]} f4 {[%emt 0:03:22]} 19. Bd2 {[%emt 0:00:04]} Qxc5 {[%emt 0:01:10]} 20. Rac1 {[%emt 0:04:03]} Be6 {[%emt 0:05:03]} 21. Qa4 {[%emt 0:07:23]} Rab8 {[%emt 0:09:26]} 22. b3 {[%emt 0:02:58]} Bf5 {[%emt 0:10:17]} 23. Qxa6 {[%emt 0:04:48]} Rfd8 {[%emt 0:02:20]} 24. Qe2 {[%emt 0:03:51]} Bd3 {[%emt 0:02:03]} 25. Qe1 {[%emt 0:00:27]} Qa3 {[%emt 0:00:29]} 26. g3 {[%emt 0:01:52]} Bg6 {[%emt 0:08:39]} 27. g4 {[%emt 0:03:32]} Qb2 {[%emt 0:08:19]} 28. Ne4 {[%emt 0:00:33]} Qxa2 {[%emt 0:00:38]} 29. Rxc6 {[%emt 0:00:22]} Qxb3 {[%emt 0:00:31]} 30. Rc3 {[%emt 0:00:35]} Qd5 {[%emt 0:01:13]} 31. Neg5 {[%emt 0:00:33]} e4 {[%emt 0:00:42]} 32. Nxf7 {[%emt 0:00:16]} Bxf7 {[%emt 0:00:44]} 33. Bxf4 {[%emt 0:00:43]} Qxd1 {[%emt 0:00:13]} 0-1

[Event "WYCC 2018 G18"]
[Site "Halkidiki"]
[Date "2018.10.20"]
[Round "1"]
[White "Nistor, Valentina"]
[Black "Afonasieva, Anna"]
[Result "0-1"]
[ECO "B53"]
[WhiteElo "1881"]
[BlackElo "2245"]
[Annotator "NA"]
[PlyCount "94"]
[EventDate "2018.10.20"]
[EventType "swiss"]
[EventCountry "GRE"]
[SourceTitle "playchess.com"]
[Source "ChessBase"]
[SourceQuality "1"]
[TimeControl "40/5400+30:1800+30"]

1. e4 {[%emt 0:00:00]} c5 {[%emt 0:00:00]} 2. Nf3 {[%emt 0:00:00]} d6 {[%emt 0:00:00]} 3. d4 {[%emt 0:00:06]} cxd4 {[%emt 0:00:04]} 4. Qxd4 {[%emt 0:00:19]} a6 {[%emt 0:02:01]} 5. c4 {[%emt 0:05:55]} Nc6 {[%emt 0:01:03]} 6. Qd1 {[%emt 0:02:08]} g6 {[%emt 0:02:05]} 7. Nc3 {[%emt 0:05:27]} Bg7 {[%emt 0:00:13]} 8. Be3 {[%emt 0:04:19] B53: Sicilian: 2...d6: Lines with Qxd4} (8. Bd2 Nf6 9. h3 O-O 10. Be2 Be6 11. O-O Rc8 12. Rc1 Nd7 13. b3 Nc5 14. Qc2 f5 15. exf5 Bxf5 {0-1 (35) Haznedaroglu,K (2436)-Li,C (2622) Beijing 2008}) 8... Bg4 {[%emt 0:03:52]} 9. Be2 {[%emt 0:07:03]} Rc8 $146 {[%emt 0:01:55]} ({Predecessor:} 9... Bxf3 10. Bxf3 Nf6 11. O-O O-O 12. Be2 Nd7 13. Rc1 Nc5 14. f3 Ne6 15. Rf2 Bd4 16. Bxd4 Nexd4 17. Bf1 e5 18. b4 Nxb4 19. Rb1 Qa5 {0-1 (36) Wutz,C (2208)-Babaev,R (2479) Schwaebisch Gmuend 2009}) 10. Rc1 {[%emt 0:03:22]} Bxf3 {[%emt 0:01:53]} 11. Bxf3 {[%emt 0:01:28]} Ne5 {[%emt 0:00:16]} 12. b3 {[%emt 0:09:48]} Nxf3+ {[%emt 0:01:12]} 13. Qxf3 {[%emt 0:07:51]} b5 {[%emt 0:06:11]} 14. Nd5 {[%emt 0:05:29]} Nf6 {[%emt 0:04:25]} 15. Bb6 {[%emt 0:05:32]} Qd7 {[%emt 0:00:51]} 16. Bd4 {[%emt 0:01:10]} Qe6 {[%emt 0:07:09]} 17. Nf4 {[%emt 0:09:33]} Qd7 {[%emt 0:00:17]} 18. Nd5 {[%emt 0:00:15]} Qb7 {[%emt 0:12:53]} 19. Bxf6 {[%emt 0:05:30]} exf6 {[%emt 0:03:36]} 20. O-O {[%emt 0:10:56]} O-O {[%emt 0:19:31]} 21. e5 {[%emt 0:00:47]} Kh8 {[%emt 0:09:24]} 22. exd6 {[%emt 0:02:08]} f5 {[%emt 0:05:49]} 23. Qd3 {[%emt 0:01:00]} Rc5 {[%emt 0:02:10]} 24. Rfe1 {[%emt 0:02:37]} Rfc8 {[%emt 0:02:18]} 25. h3 {[%emt 0:05:30]} Rd8 {[%emt 0:05:00]} 26. Rcd1 {[%emt 0:01:19]} Qd7 {[%emt 0:01:50]} 27. Nc7 {[%emt 0:01:50]} bxc4 {[%emt 0:02:03]} 28. bxc4 {[%emt 0:00:14]} Bf6 {[%emt 0:00:20]} 29. Nxa6 {[%emt 0:00:20]} Rc6 {[%emt 0:00:30]} 30. c5 {[%emt 0:00:47]} Qb7 {[%emt 0:00:22]} 31. Qd5 {[%emt 0:01:27]} Qxa6 {[%emt 0:01:14]} 32. Qxf7 {[%emt 0:00:14]} Bg5 {[%emt 0:01:12]} 33. Re8+ {[%emt 0:01:15]} Rxe8 {[%emt 0:00:03]} 34. Qxe8+ {[%emt 0:00:03]} Kg7 {[%emt 0:00:03]} 35. d7 {[%emt 0:01:05]} Re6 {[%emt 0:02:30]} 36. Qc8 {[%emt 0:00:38]} Qa5 {[%emt 0:01:50]} 37. Qe8 {[%emt 0:00:29]} Qa4 {[%emt 0:01:10]} 38. Qxe6 {[%emt 0:00:25]} Qxd1+ {[%emt 0:00:03]} 39. Kh2 {[%emt 0:00:04]} Qd2 {[%emt 0:00:30]} 40. Qe5+ {[%emt 0:00:00]} Bf6 {[%emt 0:00:00]} 41. Qc7 {[%emt 0:10:41]} Kh6 {[%emt 0:04:20]} 42. f4 {[%emt 0:02:41]} Qd1 {[%emt 0:06:15]} 43. Qc8 {[%emt 0:08:37] [#]} Bd4 {[%emt 0:01:37]} 44. Qf8+ {[%emt 0:01:55]} Kh5 {[%emt 0:00:04]} 45. d8=Q {[%emt 0:03:42]} Qg1+ {[%emt 0:00:07]} 46. Kg3 {[%emt 0:00:03]} Qe1+ {[%emt 0:00:05]} 47. Kf3 {[%emt 0:00:09]} Qf2# {[%emt 0:00:04]} 0-1

[Event "WYCC 2018 G18"]
[Site "Halkidiki"]
[Date "2018.10.20"]
[Round "1"]
[White "Buchta, Agnieszka"]
[Black "Chitlange Sakshi"]
[Result "0-1"]
[ECO "B12"]
[WhiteElo "1879"]
[BlackElo "2237"]
[Annotator "NA"]
[PlyCount "86"]
[EventDate "2018.10.20"]
[EventType "swiss"]
[EventCountry "GRE"]
[SourceTitle "playchess.com"]
[Source "ChessBase"]
[SourceQuality "1"]
[TimeControl "40/5400+30:1800+30"]

1. e4 {[%emt 0:00:00]} c6 {[%emt 0:00:00]} 2. d4 {[%emt 0:00:00]} d5 {[%emt 0:00:00]} 3. e5 {[%emt 0:00:00]} Bf5 {[%emt 0:00:00]} 4. c4 {[%emt 0:00:02]} e6 {[%emt 0:00:42]} 5. Nc3 {[%emt 0:00:12]} Ne7 {[%emt 0:00:57]} 6. a3 {[%emt 0:00:29]} dxc4 {[%emt 0:01:05]} 7. Bxc4 {[%emt 0:00:16]} Nd7 {[%emt 0:00:17]} 8. Nge2 {[%emt 0:00:34]} Nb6 {[%emt 0:01:05]} 9. Bb3 {[%emt 0:00:22]} Qd7 {[%emt 0:01:16]} 10. O-O {[%emt 0:04:51]} Bg6 {[%emt 0:04:58]} 11. Be3 {[%emt 0:04:20]} Nf5 {[%emt 0:01:04]} 12. Qd2 {[%emt 0:02:34]} Be7 {[%emt 0:03:01]} 13. Nf4 {[%emt 0:05:45]} Nxe3 {[%emt 0:04:39]} 14. fxe3 $14 {[%emt 0:12:29]} O-O {[%emt 0:04:16]} 15. Rad1 {[%emt 0:04:25]} Rad8 {[%emt 0:01:15]} 16. Qf2 {[%emt 0:08:58]} Nd5 {[%emt 0:03:28]} 17. Nxg6 {[%emt 0:09:04]} hxg6 {[%emt 0:01:52]} 18. e4 {[%emt 0:02:13]} Nxc3 {[%emt 0:10:55]} 19. bxc3 {[%emt 0:00:07]} Qc7 {[%emt 0:00:57]} 20. Kh1 {[%emt 0:15:35]} Bxa3 {[%emt 0:18:01]} 21. Qf4 {[%emt 0:10:55]} c5 {[%emt 0:08:49]} 22. d5 {[%emt 0:11:00]} c4 {[%emt 0:00:29]} 23. Bc2 {[%emt 0:01:47]} f6 {[%emt 0:11:44]} 24. d6 {[%emt 0:02:43]} Qd7 {[%emt 0:01:35]} 25. exf6 {[%emt 0:02:32]} Rxf6 {[%emt 0:00:14]} 26. Qe3 {[%emt 0:00:31]} Rxf1+ {[%emt 0:08:39]} 27. Rxf1 {[%emt 0:00:02]} e5 {[%emt 0:00:38]} 28. Qxa7 {[%emt 0:01:40]} Bxd6 {[%emt 0:00:43]} 29. Rb1 {[%emt 0:00:20]} Rf8 {[%emt 0:02:43]} 30. h3 {[%emt 0:00:30]} Rf7 {[%emt 0:01:43]} 31. Ba4 {[%emt 0:00:28]} Qc8 {[%emt 0:01:36]} 32. Bb5 {[%emt 0:00:29]} Kh7 {[%emt 0:01:36]} 33. Qa4 {[%emt 0:00:27]} Rc7 {[%emt 0:00:26]} 34. Rd1 {[%emt 0:00:31]} Be7 {[%emt 0:02:13]} 35. Rd7 {[%emt 0:00:35]} Rxd7 {[%emt 0:02:02]} 36. Bxd7 {[%emt 0:00:01]} Qc5 {[%emt 0:00:07]} 37. Be6 {[%emt 0:01:04]} b5 {[%emt 0:02:07]} 38. Qa8 {[%emt 0:00:31]} Bf8 {[%emt 0:00:01]} 39. Qd5 {[%emt 0:00:34]} Qe3 {[%emt 0:01:25]} 40. Bg8+ {[%emt 0:00:00]} Kh8 {[%emt 0:00:00]} 41. Bf7 {[%emt 0:12:35]} Kh7 {[%emt 0:05:33]} 42. Qd8 {[%emt 0:17:52]} Qc1+ {[%emt 0:00:34]} 43. Kh2 {[%emt 0:00:24]} Qf4+ {[%emt 0:00:11]} 0-1

[Event "WYCC 2018 G18"]
[Site "Halkidiki"]
[Date "2018.10.20"]
[Round "1"]
[White "Salimova, Asal"]
[Black "Priyanka, Kumari"]
[Result "0-1"]
[ECO "A45"]
[WhiteElo "1870"]
[BlackElo "2005"]
[Annotator "NA"]
[PlyCount "86"]
[EventDate "2018.10.20"]
[EventType "swiss"]
[EventCountry "GRE"]
[SourceTitle "playchess.com"]
[Source "ChessBase"]
[SourceQuality "1"]
[TimeControl "40/5400+30:1800+30"]

1. d4 {[%emt 0:00:00]} Nf6 {[%emt 0:00:07]} 2. Bf4 {[%emt 0:00:31]} g6 {[%emt 0:00:23]} 3. Nc3 {[%emt 0:00:05]} d5 {[%emt 0:00:49]} 4. e3 {[%emt 0:00:06]} Bg7 {[%emt 0:00:08]} 5. h4 {[%emt 0:00:07]} h5 {[%emt 0:00:24]} 6. Nf3 {[%emt 0:00:24]} Bg4 {[%emt 0:00:41]} 7. Be2 {[%emt 0:00:33]} Bxf3 {[%emt 0:01:37]} 8. Bxf3 {[%emt 0:00:34]} c6 {[%emt 0:00:33]} 9. b4 {[%emt 0:05:55]} Nbd7 {[%emt 0:06:23]} 10. a4 {[%emt 0:00:43]} e5 {[%emt 0:04:04]} 11. Bg3 {[%emt 0:06:02]} Qe7 {[%emt 0:01:45]} 12. Rb1 {[%emt 0:17:06] [#]} exd4 $17 {[%emt 0:02:37]} 13. Qxd4 {[%emt 0:03:55]} O-O {[%emt 0:00:27]} 14. Qd2 {[%emt 0:05:13]} Ne5 {[%emt 0:03:21]} 15. Be2 {[%emt 0:05:19]} Rad8 {[%emt 0:01:22]} 16. O-O {[%emt 0:04:20]} Rfe8 {[%emt 0:04:13]} 17. Rfd1 {[%emt 0:05:05]} Nfg4 {[%emt 0:04:08]} 18. Bxg4 {[%emt 0:08:27]} Nxg4 {[%emt 0:01:09]} 19. Ne2 {[%emt 0:05:43]} Bf6 {[%emt 0:00:53]} 20. Nd4 {[%emt 0:01:19]} Bxh4 {[%emt 0:02:14]} 21. Bxh4 {[%emt 0:00:06]} Qxh4 {[%emt 0:00:07]} 22. Nf3 {[%emt 0:00:02]} Qf6 {[%emt 0:00:44]} 23. Qd4 {[%emt 0:00:12]} Qxd4 {[%emt 0:01:30]} 24. Rxd4 {[%emt 0:00:13]} Re4 {[%emt 0:00:48]} 25. Rbd1 {[%emt 0:01:51]} Nf6 {[%emt 0:04:02]} 26. c4 {[%emt 0:01:39]} Rxd4 {[%emt 0:00:56]} 27. Rxd4 {[%emt 0:00:06]} Kf8 {[%emt 0:00:58]} 28. Ne5 {[%emt 0:02:27]} Ke7 {[%emt 0:02:12]} 29. c5 {[%emt 0:00:18]} Ke6 {[%emt 0:00:33]} 30. Nd3 {[%emt 0:04:37]} Re8 {[%emt 0:02:11]} 31. f3 {[%emt 0:02:15]} g5 {[%emt 0:08:22]} 32. Kf2 {[%emt 0:02:47]} h4 {[%emt 0:01:17]} 33. Nc1 {[%emt 0:01:24]} Kf5 {[%emt 0:06:57]} 34. Ne2 {[%emt 0:06:19]} Rh8 {[%emt 0:01:29]} 35. Ng1 {[%emt 0:02:05]} g4 {[%emt 0:04:37]} 36. Rf4+ {[%emt 0:00:14]} Kg5 {[%emt 0:00:22]} 37. fxg4 {[%emt 0:00:17]} Nxg4+ {[%emt 0:00:27]} 38. Kf3 {[%emt 0:00:31]} f5 {[%emt 0:02:27]} 39. Nh3+ {[%emt 0:01:55]} Kf6 {[%emt 0:00:11]} 40. Ke2 {[%emt 0:00:00]} Re8 {[%emt 0:00:00]} 41. Kd2 {[%emt 0:09:10]} Rxe3 {[%emt 0:02:55]} 42. Nf2 {[%emt 0:01:42]} Rg3 {[%emt 0:00:19]} 43. Nxg4+ {[%emt 0:09:48]} Rxg4 {[%emt 0:00:07]} 0-1

[Event "WYCC 2018 G18"]
[Site "Halkidiki"]
[Date "2018.10.20"]
[Round "1"]
[White "Miller, Rachel"]
[Black "Hrescak, Ivana"]
[Result "0-1"]
[ECO "B53"]
[WhiteElo "1859"]
[BlackElo "2173"]
[Annotator "NA"]
[PlyCount "94"]
[EventDate "2018.10.20"]
[EventType "swiss"]
[EventCountry "GRE"]
[SourceTitle "playchess.com"]
[Source "ChessBase"]
[SourceQuality "1"]
[TimeControl "40/5400+30:1800+30"]

1. e4 {[%emt 0:00:00]} c5 {[%emt 0:00:00]} 2. Nf3 {[%emt 0:00:00]} d6 {[%emt 0:00:00]} 3. d4 cxd4 {[%emt 0:00:06]} 4. Qxd4 {[%emt 0:00:04]} a6 {[%emt 0:00:17]} 5. c4 {[%emt 0:00:39]} Nc6 {[%emt 0:00:41]} 6. Qe3 {[%emt 0:00:30]} g6 {[%emt 0:01:47]} 7. Be2 {[%emt 0:01:44]} Bg7 {[%emt 0:01:01]} 8. O-O {[%emt 0:00:53]} Bg4 {[%emt 0:03:01]} 9. Rd1 {[%emt 0:05:44]} Qc8 {[%emt 0:15:22]} 10. Na3 {[%emt 0:07:56]} Nf6 {[%emt 0:05:58]} 11. h3 {[%emt 0:08:45]} Bxf3 {[%emt 0:02:49]} 12. Bxf3 {[%emt 0:01:18]} Nd7 {[%emt 0:05:25]} 13. Rb1 {[%emt 0:05:20]} O-O {[%emt 0:03:49]} 14. b3 {[%emt 0:02:24]} b5 {[%emt 0:06:51]} 15. Bb2 {[%emt 0:09:50]} b4 {[%emt 0:07:08]} 16. Bxg7 {[%emt 0:03:00]} Kxg7 {[%emt 0:00:02]} 17. Nc2 {[%emt 0:00:28]} Nde5 $14 {[%emt 0:07:30]} 18. Be2 {[%emt 0:02:03]} a5 {[%emt 0:00:40]} 19. Qg3 {[%emt 0:21:19]} Kh8 {[%emt 0:07:57]} 20. Ne3 {[%emt 0:04:57]} Qb8 {[%emt 0:05:43]} 21. Kh2 {[%emt 0:16:11]} a4 {[%emt 0:03:10]} 22. f4 {[%emt 0:01:38]} Nd7 {[%emt 0:02:08]} 23. e5 {[%emt 0:05:32]} dxe5 {[%emt 0:06:57]} 24. f5 {[%emt 0:00:12]} Nf6 {[%emt 0:03:49]} 25. fxg6 {[%emt 0:00:39]} hxg6 26. Ng4 {[%emt 0:00:13]} Nxg4+ {[%emt 0:01:53]} 27. Qxg4 {[%emt 0:00:27]} Nd4 28. Bf1 axb3 {[%emt 0:02:54]} 29. axb3 {[%emt 0:00:39]} Qc7 {[%emt 0:03:29]} 30. Kh1 {[%emt 0:00:14]} Ra3 {[%emt 0:00:25]} 31. Bd3 {[%emt 0:00:36]} Kg7 {[%emt 0:00:29]} 32. Be4 {[%emt 0:00:23]} Rxb3 {[%emt 0:02:20]} 33. Rxd4 {[%emt 0:00:31]} Rxb1+ {[%emt 0:00:10]} 34. Bxb1 {[%emt 0:00:05]} exd4 {[%emt 0:00:05]} 35. Qxd4+ {[%emt 0:00:04]} e5 {[%emt 0:00:53]} 36. Qe4 {[%emt 0:00:25]} Rd8 {[%emt 0:00:28]} 37. Bd3 {[%emt 0:00:14]} Rd4 {[%emt 0:00:26]} 38. Qe2 {[%emt 0:00:10]} Qd6 {[%emt 0:01:24]} 39. c5 {[%emt 0:00:39]} Qxc5 {[%emt 0:00:18]} 40. Ba6 {[%emt 0:00:00]} Qc1+ {[%emt 0:00:00]} 41. Kh2 {[%emt 0:00:27]} Qf4+ {[%emt 0:00:51]} 42. Kg1 {[%emt 0:01:29]} Rd2 {[%emt 0:04:26]} 43. Qe1 {[%emt 0:00:11]} Qd4+ {[%emt 0:00:57]} 44. Kh2 {[%emt 0:00:11]} Rd1 {[%emt 0:03:38]} 45. Qe2 {[%emt 0:01:42]} Qf4+ {[%emt 0:00:12]} 46. g3 Qd4 {[%emt 0:01:53]} 47. Qf3 {[%emt 0:01:10]} Qg1# 0-1

[Event "WYCC 2018 G18"]
[Site "Halkidiki"]
[Date "2018.10.20"]
[Round "1"]
[White "Nguyen, Thi Minh Thu"]
[Black "Gajcin, Marina"]
[Result "0-1"]
[ECO "D80"]
[WhiteElo "1849"]
[BlackElo "2153"]
[Annotator "NA"]
[PlyCount "72"]
[EventDate "2018.10.20"]
[EventType "swiss"]
[EventCountry "GRE"]
[SourceTitle "playchess.com"]
[Source "ChessBase"]
[SourceQuality "1"]
[TimeControl "40/5400+30:1800+30"]

1. d4 {[%emt 0:00:00]} Nf6 {[%emt 0:00:00]} 2. c4 {[%emt 0:00:00]} g6 {[%emt 0:00:00]} 3. Nc3 {[%emt 0:00:09]} d5 {[%emt 0:00:00]} 4. e3 {[%emt 0:00:50]} Bg7 {[%emt 0:00:18]} 5. Qb3 {[%emt 0:02:52]} dxc4 {[%emt 0:08:58]} 6. Bxc4 {[%emt 0:00:13]} O-O {[%emt 0:00:13]} 7. Nf3 {[%emt 0:02:00]} Nc6 {[%emt 0:11:10]} 8. Ng5 {[%emt 0:09:21]} e6 {[%emt 0:01:37]} 9. Be2 {[%emt 0:00:59]} Nd5 {[%emt 0:03:18]} 10. Nf3 {[%emt 0:02:11]} Nb6 {[%emt 0:02:02]} 11. O-O $11 {[%emt 0:05:24]} a5 {[%emt 0:01:50]} 12. a3 {[%emt 0:04:09]} a4 {[%emt 0:04:11]} 13. Qc2 {[%emt 0:00:23]} e5 {[%emt 0:05:42]} 14. d5 {[%emt 0:02:18]} Na5 {[%emt 0:03:10]} 15. Nxa4 {[%emt 0:01:27]} Nxa4 {[%emt 0:02:15]} 16. Qxa4 {[%emt 0:04:15]} Qxd5 {[%emt 0:00:16]} 17. e4 {[%emt 0:04:10]} Qb3 {[%emt 0:03:38]} 18. Bd1 {[%emt 0:06:43]} Qxa4 {[%emt 0:00:43]} 19. Bxa4 {[%emt 0:00:08]} Be6 {[%emt 0:00:54]} 20. Bd2 {[%emt 0:12:17]} Nc4 {[%emt 0:06:20]} 21. Bb3 {[%emt 0:01:22]} Nxd2 {[%emt 0:06:53]} 22. Nxd2 {[%emt 0:00:08]} Rfd8 {[%emt 0:05:11]} 23. Rfd1 {[%emt 0:02:01]} Rxd2 {[%emt 0:01:37]} 24. Rxd2 {[%emt 0:00:06]} Bxb3 {[%emt 0:00:04]} 25. Rd7 {[%emt 0:00:07]} Ba4 {[%emt 0:00:04]} 26. Rd3 {[%emt 0:04:57]} Bc2 {[%emt 0:01:46]} 27. Re3 {[%emt 0:01:44]} Bh6 {[%emt 0:01:55]} 28. Ree1 {[%emt 0:00:08]} Rd8 {[%emt 0:00:50]} 29. f3 {[%emt 0:01:03]} Bd2 {[%emt 0:02:40]} 30. Rf1 {[%emt 0:01:19]} Bd3 {[%emt 0:00:12]} 31. Rfd1 {[%emt 0:00:09]} Be2 {[%emt 0:03:38]} 32. Rdb1 {[%emt 0:00:16]} Be3+ {[%emt 0:00:14]} 33. Kh1 {[%emt 0:00:06]} Rd2 {[%emt 0:00:16]} 34. Rc1 {[%emt 0:04:08]} c5 {[%emt 0:02:04]} 35. b3 {[%emt 0:00:35]} Bd4 {[%emt 0:00:10]} 36. Rab1 {[%emt 0:00:29]} Ra2 {[%emt 0:00:33]} 0-1